bitfinex/quotes_SOLUSD_20251115
["timestamp","ask_amount","ask_price","bid_price","bid_amount"]
[1763175984622,0.67,143.04,142.98,0.6]
[1763175984623,24.53379753,143.03,142.98,0.6]
[1763175985321,25.20379753,143.03,142.98,0.6]
[1763175985823,0.67,143.02,142.98,0.6]
[1763175986033,23.3212,143.03,142.98,2.48259753]
[1763175986338,0.67,143.06,143.01,1.88259753]
[1763175986516,0.67,143.06,143.01,2.38259753]
[1763175986903,2.55259753,143.06,143.01,0.5]
[1763175987421,0.67,143.05,143.01,0.5]
[1763175988012,0.67,143.05,143.01,2.38259753]
[1763175988422,25.20379753,143.05,142.98,2.48259753]
[1763175988904,2.55259753,143.04,142.98,2.48259753]
[1763175989512,2.55259753,143.06,143.0,1.88259753]
[1763175989826,1.88259753,143.03,142.98,0.1]
[1763175990326,0.67,143.02,142.98,0.1]
[1763175991323,4.70594084,143.01,142.98,0.1]
[1763175991698,0.67,143.0,142.98,0.1]
[1763175992407,5.37594084,143.0,142.98,0.1]
[1763175992809,4.70594084,143.01,142.98,0.1]
[1763175993129,0.67,143.01,142.98,0.1]
[1763175994239,4.70594084,143.0,142.98,0.1]
[1763175994539,4.70594084,142.99,142.98,0.1]
[1763175994944,5.37594084,142.99,142.98,0.1]
[1763175995716,0.67,142.99,142.98,0.1]
[1763175996217,5.37594084,143.01,142.98,0.1]
[1763175996516,0.67,143.01,142.98,0.1]
[1763176001042,5.37594084,143.01,142.98,0.1]
[1763176001252,0.67,143.01,142.98,0.1]
[1763176002334,0.67,143.02,142.98,0.1]
[1763176002518,23.3212,143.02,142.98,0.1]
[1763176002719,22.6512,143.02,142.98,0.1]
[1763176003024,0.66,143.01,142.98,0.1]
[1763176004641,5.36594084,143.01,142.98,0.1]
[1763176005025,0.66,143.0,142.98,0.1]
[1763176005542,5.36594084,143.0,142.98,0.1]
[1763176005845,4.70594084,142.99,142.98,0.1]
[1763176006031,28.01714084,142.99,142.98,0.1]
[1763176006232,23.3112,142.99,142.98,0.1]
[1763176006422,28.01714084,142.99,142.98,0.1]
[1763176007444,37.80596853,142.99,142.98,0.1]
[1763176007642,23.3112,142.99,142.98,0.1]
[1763176007847,22.6512,142.99,142.98,0.1]
[1763176008059,23.3112,142.99,142.98,0.1]
[1763176009042,28.01714084,142.99,142.98,0.1]
[1763176010916,25.19486801,142.99,142.98,0.1]
[1763176013039,24.53486801,142.99,142.98,0.1]
[1763176013347,25.19486801,142.99,142.98,0.1]
[1763176016321,1.88366801,143.0,142.98,0.1]
[1763176016629,24.53486801,143.0,142.98,0.1]
[1763176017153,22.6512,143.0,142.98,0.1]
[1763176019434,1.88366801,143.01,142.98,0.6]
[1763176019640,2.54366801,143.01,142.98,0.1]
[1763176020154,24.53486801,143.02,142.98,0.6]
[1763176020345,25.19486801,143.02,142.98,0.6]
[1763176020728,106.18366801,143.03,142.98,0.6]
[1763176020930,106.18366801,143.03,142.98,2.48366801]
[1763176021149,1.88366801,143.05,142.99,1.88366801]
[1763176021348,2.54366801,143.06,143.0,1.88366801]
[1763176021553,22.6512,143.05,143.0,2.38366801]
[1763176021740,75.19486801,143.05,142.98,0.1]
[1763176021930,24.53486801,143.02,142.98,0.1]
[1763176022135,2.54366801,143.04,142.99,0.5]
[1763176022451,25.19486801,143.04,142.98,1.98366801]
[1763176022638,1.88366801,143.02,142.98,0.1]
[1763176022841,0.66,143.01,142.98,0.1]
[1763176023525,1.88366801,143.0,142.98,0.1]
[1763176024150,0.66,143.0,142.98,0.1]
[1763176024544,1.88366801,143.02,142.98,0.6]
[1763176024935,24.53486801,143.03,142.98,0.6]
[1763176025236,2.54366801,143.02,142.98,0.6]
[1763176025435,2.54366801,143.02,142.98,0.1]
[1763176025436,1.88366801,143.01,142.98,0.1]
[1763176025647,1.88366801,143.0,142.98,0.1]
[1763176025854,2.54366801,143.0,142.98,0.1]
[1763176026035,1.88366801,143.01,142.98,0.1]
[1763176026238,0.66,143.01,142.98,0.1]
[1763176027255,1.88366801,143.0,142.98,0.1]
[1763176027631,2.54366801,143.0,142.98,0.1]
[1763176028156,2.54366801,143.01,142.98,0.1]
[1763176028353,25.19486801,143.01,142.98,0.1]
[1763176028940,0.66,143.0,142.98,0.1]
[1763176029257,25.19486801,143.01,142.98,0.1]
[1763176030548,22.6512,143.01,142.98,0.1]
[1763176030744,121.62349973,143.05,142.98,2.48366801]
[1763176030745,25.19486801,143.04,142.98,2.48366801]
[1763176031168,22.6512,143.01,142.98,0.1]
[1763176031378,1.88366801,142.99,142.98,0.1]
[1763176031848,25.19486801,142.99,142.98,0.1]
[1763176032951,26.25413583,142.99,142.98,0.1]
[1763176033162,23.3612,142.99,142.98,0.1]
[1763176033362,26.30413583,142.99,142.98,0.1]
[1763176033763,23.3612,142.99,142.98,0.1]
[1763176034679,26.30413583,142.99,142.98,0.1]
[1763176035379,36.09296352,142.99,142.98,0.1]
[1763176036646,26.30413583,142.99,142.98,0.1]
[1763176036876,23.3612,142.99,142.98,0.1]
[1763176037086,22.6512,142.99,142.98,0.1]
[1763176037580,104.3,143.02,142.98,0.1]
[1763176037581,3.65293583,143.02,142.98,0.6]
[1763176037751,3.65293583,143.01,142.98,0.1]
[1763176037951,25.59413583,143.01,142.98,0.1]
[1763176038177,3.65293583,143.03,142.98,0.6]
[1763176038778,26.30413583,143.03,142.98,0.6]
[1763176039077,3.65293583,143.03,142.98,0.6]
[1763176039264,0.71,143.02,142.98,0.6]
[1763176040176,0.71,143.02,142.98,3.54293583]
[1763176040974,0.71,143.02,142.98,0.6]
[1763176041181,26.30413583,143.03,142.98,0.6]
[1763176042686,26.30413583,143.03,142.98,3.54293583]
[1763176044063,0.71,143.02,142.98,0.6]
[1763176044363,3.65293583,143.02,142.98,0.1]
[1763176044770,2.94293583,143.01,142.98,0.1]
[1763176045082,3.65293583,143.02,142.98,0.6]
[1763176045476,0.71,143.02,142.98,0.6]
[1763176047367,3.65293583,143.02,142.98,0.6]
[1763176048202,26.30413583,143.03,142.98,3.54293583]
[1763176048360,0.71,143.02,142.98,3.54293583]
[1763176050061,0.71,143.02,142.98,0.6]
[1763176050581,0.71,143.02,142.98,3.54293583]
[1763176050878,26.30413583,143.03,142.98,3.54293583]
[1763176051187,0.71,143.02,142.98,3.54293583]
[1763176051388,26.30413583,143.03,142.99,0.5]
[1763176051764,0.71,143.02,142.98,3.04293583]
[1763176051964,0.71,143.02,142.98,3.54293583]
[1763176052683,22.6512,143.03,142.99,3.44293583]
[1763176052865,23.3612,143.03,142.99,3.44293583]
[1763176053065,22.6512,143.03,143.0,0.5]
[1763176053266,22.6512,143.03,143.0,3.44293583]
[1763176053480,26.30413583,143.06,143.01,3.44293583]
[1763176053684,26.30413583,143.06,143.02,0.5]
[1763176054281,3.65293583,143.06,143.02,0.5]
[1763176054472,3.65293583,143.07,143.02,0.5]
[1763176054671,26.30413583,143.07,143.02,0.5]
[1763176055172,0.71,143.06,143.02,0.5]
[1763176055567,0.71,143.06,143.01,2.94293583]
[1763176055768,3.65293583,143.06,143.01,3.44293583]
[1763176056308,0.71,143.05,143.0,0.64216157]
[1763176056605,0.71,143.05,143.01,0.5]
[1763176057265,0.71,143.05,143.01,3.44293583]
[1763176060205,0.71,143.05,143.02,0.5]
[1763176060702,26.30413583,143.07,143.03,0.5]
[1763176060895,26.30413583,143.07,143.02,3.44293583]
[1763176061283,0.71,143.06,143.02,2.94293583]
[1763176061487,0.71,143.06,143.02,3.44293583]
[1763176062001,0.71,143.06,143.02,0.5]
[1763176063299,0.71,143.06,143.02,3.44293583]
[1763176064801,0.71,143.06,143.02,2.94293583]
[1763176065002,3.65293583,143.06,143.01,3.44293583]
[1763176065391,0.71,143.05,143.01,3.44293583]
[1763176066588,0.71,143.05,143.01,2.94293583]
[1763176066793,0.71,143.05,143.02,0.5]
[1763176067290,26.30413583,143.07,143.02,3.44293583]
[1763176067608,0.71,143.06,143.02,3.44293583]
[1763176068686,0.71,143.06,143.02,2.94293583]
[1763176069604,26.30413583,143.08,143.03,3.44293583]
[1763176069783,23.3612,143.08,143.03,3.44293583]
[1763176070107,0.71,143.07,143.03,2.94293583]
[1763176070481,0.71,143.07,143.04,0.5]
[1763176070904,23.3612,143.08,143.04,0.5]
[1763176071102,0.71,143.08,143.04,3.44293583]
[1763176071302,107.24293583,143.11,143.05,2.94293583]
[1763176071495,0.71,143.09,143.05,3.44293583]
[1763176071884,22.6512,143.1,143.06,3.44293583]
[1763176072083,2.94293583,143.12,143.07,2.94293583]
[1763176072304,0.71,143.14,143.08,2.94293583]
[1763176072603,3.65293583,143.14,143.08,3.44293583]
[1763176072799,26.30413583,143.14,143.08,3.44293583]
[1763176073000,26.30413583,143.14,143.09,3.44293583]
[1763176073197,0.71,143.13,143.09,2.94293583]
[1763176073509,3.65293583,143.13,143.08,2.94293583]
[1763176074003,0.71,143.12,143.08,3.44293583]
[1763176074718,22.6512,143.14,143.09,0.5]
[1763176074719,23.3612,143.14,143.09,0.5]
[1763176074915,26.30413583,143.14,143.09,3.44293583]
[1763176075107,0.2,143.15,143.1,2.94293583]
[1763176075331,0.2,143.15,143.11,3.44293583]
[1763176075629,0.2,143.15,143.12,3.44293583]
[1763176075925,0.2,143.15,143.13,0.5]
[1763176076725,0.2,143.15,143.12,2.94293583]
[1763176076920,0.2,143.15,143.12,3.44293583]
[1763176078023,0.2,143.15,143.13,2.94293583]
[1763176078214,0.2,143.15,143.13,3.44293583]
[1763176078623,0.2,143.15,143.11,0.14216157]
[1763176078624,0.2,143.15,143.11,0.64216157]
[1763176078819,0.2,143.15,143.12,2.94293583]
[1763176079128,0.2,143.15,143.1,2.94293583]
[1763176079129,0.91,143.15,143.1,3.5850974]
[1763176079430,0.91,143.15,143.11,3.44293583]
[1763176080417,0.71,143.14,143.1,0.14216157]
[1763176080613,0.71,143.14,143.1,3.0850974]
[1763176080825,3.65293583,143.14,143.09,2.94293583]
[1763176081319,3.65293583,143.13,143.07,6.58587166]
[1763176081629,2.94293583,143.12,143.07,2.94293583]
[1763176081813,2.94293583,143.11,143.06,2.94293583]
[1763176082008,0.71,143.1,143.06,2.94293583]
[1763176082512,0.71,143.1,143.06,3.44293583]
[1763176084524,0.71,143.1,143.07,2.94293583]
[1763176084718,0.71,143.1,143.06,3.44293583]
[1763176085326,0.71,143.1,143.07,2.94293583]
[1763176085806,3.65293583,143.13,143.08,3.44293583]
[1763176086004,0.71,143.13,143.09,2.94293583]
[1763176086200,0.71,143.12,143.09,2.94293583]
[1763176086601,25.59413583,143.14,143.09,3.44293583]
[1763176086602,0.71,143.13,143.09,3.44293583]
[1763176088628,3.65293583,143.13,143.08,2.94293583]
[1763176088837,0.71,143.12,143.08,2.94293583]
[1763176089020,0.71,143.12,143.08,3.44293583]
[1763176089828,2.94293583,143.1,143.04,0.14216157]
[1763176090005,2.94293583,143.09,143.04,3.0850974]
[1763176090202,0.72,143.1,143.04,3.0850974]
[1763176090405,2.94293583,143.09,143.04,3.0850974]
[1763176090831,0.72,143.08,143.04,3.0850974]
[1763176091408,26.31413583,143.08,143.01,9.93098926]
[1763176091612,2.94293583,143.06,143.0,0.5]
[1763176091921,2.94293583,143.05,143.0,3.44293583]
[1763176092127,2.94293583,143.05,143.0,2.94293583]
[1763176092342,0.72,143.04,143.0,2.94293583]
[1763176093246,0.72,143.04,143.0,3.44293583]
[1763176094837,26.31413583,143.04,142.98,0.1]
[1763176095022,22.6512,143.04,143.0,1.88196268]
[1763176095226,23.3612,143.04,143.0,1.88196268]
[1763176096035,0.71,143.03,143.0,1.88196268]
[1763176096438,23.3612,143.04,143.0,1.88196268]
[1763176097150,23.3612,143.04,143.01,1.88196268]
[1763176097448,23.3612,143.06,143.02,1.88196268]
[1763176097751,0.71,143.05,143.02,1.88196268]
[1763176099044,22.6512,143.06,143.02,1.88196268]
[1763176099432,0.71,143.07,143.03,2.38196268]
[1763176099635,23.3612,143.09,143.04,1.88196268]
[1763176099831,1.88196268,143.1,143.05,1.88196268]
[1763176100043,0.71,143.08,143.04,1.88196268]
[1763176100350,0.71,143.08,143.05,1.88196268]
[1763176100548,23.3612,143.09,143.05,1.88196268]
[1763176100723,0.71,143.09,143.05,1.88196268]
[1763176100931,2.59196268,143.11,143.06,1.88196268]
[1763176101150,22.6512,143.11,143.06,1.88196268]
[1763176101350,0.71,143.1,143.06,2.38196268]
[1763176101849,1.88196268,143.07,143.02,9.93098926]
[1763176102051,24.53316268,143.07,143.02,1.88196268]
[1763176102353,0.71,143.06,143.02,1.88196268]
[1763176102929,2.59196268,143.06,143.0,2.02412425]
[1763176103341,0.71,143.05,143.01,1.75615766]
[1763176104056,25.11735766,143.05,143.0,0.14216157]
[1763176104246,0.71,143.04,143.0,0.14216157]
[1763176104553,0.71,143.04,143.02,1.75615766]
[1763176105132,0.71,143.06,143.03,1.75615766]
[1763176106074,0.71,143.1,143.05,1.75615766]
[1763176106249,0.71,143.1,143.06,1.75615766]
[1763176106445,23.3612,143.1,143.06,1.75615766]
[1763176106945,0.71,143.09,143.06,1.75615766]
[1763176107966,2.46615766,143.09,143.03,1.89831923]
[1763176108377,0.71,143.08,143.03,1.89831923]
[1763176109373,0.71,143.08,143.04,1.75615766]
[1763176109883,0.71,143.08,143.03,0.64216157]
[1763176110072,0.71,143.08,143.04,1.75615766]
[1763176114596,105.01,143.13,143.07,1.75615766]
[1763176114784,0.71,143.12,143.07,1.75615766]
[1763176115089,0.71,143.12,143.08,1.75615766]
[1763176115491,2.46615766,143.12,143.07,1.75615766]
[1763176115681,1.75615766,143.11,143.06,1.75615766]
[1763176115878,0.71,143.1,143.06,1.75615766]
[1763176117088,128.70735766,143.13,143.08,1.75615766]
[1763176117270,0.71,143.12,143.08,1.75615766]
[1763176117472,0.71,143.12,143.07,1.75615766]
[1763176117674,0.71,143.12,143.08,1.75615766]
[1763176120292,0.71,143.12,143.07,2.25615766]
[1763176120802,1.75615766,143.1,143.04,1.75615766]
[1763176121031,7.73463064,143.12,143.05,1.75615766]
[1763176121180,2.46615766,143.11,143.05,1.75615766]
[1763176121698,0.71,143.1,143.05,1.75615766]
[1763176122109,0.71,143.1,143.05,2.25615766]
[1763176122497,0.71,143.1,143.05,1.75615766]
[1763176122804,0.71,143.1,143.03,0.14216157]
[1763176122805,25.11735766,143.1,143.03,0.14216157]
[1763176123008,25.11735766,143.1,143.04,1.75615766]
[1763176123182,0.68,143.09,143.04,1.75615766]
[1763176123711,0.68,143.09,143.05,1.75615766]
[1763176124095,0.68,143.09,143.04,2.25615766]
[1763176125009,2.43615766,143.09,143.04,1.75615766]
[1763176125411,0.68,143.08,143.04,1.75615766]
[1763176126002,0.68,143.08,143.04,2.25615766]
[1763176126209,24.40735766,143.1,143.04,2.25615766]
[1763176126505,0.68,143.08,143.04,2.25615766]
[1763176127115,0.68,143.08,143.04,1.75615766]
[1763176127302,0.68,143.08,143.03,1.75615766]
[1763176127992,2.43615766,143.08,143.03,1.75615766]
[1763176128217,0.68,143.07,143.03,1.75615766]
[1763176129111,23.3312,143.09,143.04,0.5]
[1763176129411,22.6512,143.09,143.05,1.75615766]
[1763176129599,0.68,143.08,143.04,1.75615766]
[1763176130291,25.08735766,143.08,143.01,0.64216157]
[1763176130497,25.08735766,143.08,143.02,1.75615766]
[1763176130690,0.68,143.07,143.02,1.75615766]
[1763176131321,0.68,143.07,143.03,1.75615766]
[1763176132501,1.75615766,143.06,143.01,1.75615766]
[1763176132698,0.68,143.05,143.01,1.75615766]
[1763176134324,0.68,143.05,143.02,1.75615766]
[1763176135095,0.68,143.05,143.03,1.75615766]
[1763176135916,0.68,143.05,143.02,1.75615766]
[1763176136602,23.3312,143.08,143.04,1.75615766]
[1763176136902,0.68,143.08,143.04,1.75615766]
[1763176137094,23.3312,143.08,143.04,1.75615766]
[1763176138203,23.3312,143.08,143.04,2.25615766]
[1763176138397,0.68,143.07,143.04,1.75615766]
[1763176141321,0.68,143.07,143.0,16.9556199]
[1763176141322,0.68,143.08,143.05,1.75615766]
[1763176141844,23.3312,143.08,143.0,22.79336157]
[1763176142116,22.6512,143.06,143.01,1.75615766]
[1763176142498,0.68,143.05,143.01,1.75615766]
[1763176143111,0.68,143.05,143.02,1.75615766]
[1763176145414,0.68,143.05,143.01,1.75615766]
[1763176148222,0.68,143.05,143.03,1.75615766]
[1763176148726,0.68,143.05,143.02,1.75615766]
[1763176149816,23.3312,143.08,143.03,2.25615766]
[1763176150023,23.3312,143.08,143.04,1.75615766]
[1763176150222,0.68,143.08,143.04,1.75615766]
[1763176150416,0.71,143.07,143.04,1.75615766]
[1763176151904,22.6512,143.09,143.04,2.25615766]
[1763176152208,0.71,143.08,143.05,1.75615766]
[1763176154532,0.71,143.08,143.04,2.25615766]
[1763176154838,0.71,143.08,143.04,1.75615766]
[1763176156332,0.71,143.08,143.05,1.75615766]
[1763176157009,0.71,143.08,143.05,2.74235528]
[1763176159120,0.71,143.08,143.04,2.74235528]
[1763176159316,0.71,143.08,143.03,2.74235528]
[1763176160541,0.71,143.08,143.04,2.74235528]
[1763176164133,0.71,143.08,143.05,2.74235528]
[1763176165126,0.71,143.08,143.04,2.74235528]
[1763176166119,3.45235528,143.08,143.01,0.64216157]
[1763176166319,22.6512,143.06,143.0,2.80180716]
[1763176166547,25.39355528,143.06,143.0,5.54416244]
[1763176166749,0.7,143.05,143.0,5.54416244]
[1763176166931,0.7,143.05,143.0,2.74235528]
[1763176167843,26.09355528,143.05,142.99,2.74235528]
[1763176168043,23.3512,143.05,143.0,2.74235528]
[1763176168238,0.7,143.04,143.0,2.74235528]
[1763176169643,3.44235528,143.04,142.98,0.24216157]
[1763176169815,3.44235528,143.04,142.98,2.98451685]
[1763176170148,0.7,143.03,142.99,2.74235528]
[1763176171563,0.7,143.03,143.0,2.74235528]
[1763176172146,0.7,143.03,142.99,2.74235528]
[1763176173156,0.7,143.03,143.0,2.74235528]
[1763176176027,22.6512,143.05,143.01,3.24235528]
[1763176176232,0.7,143.05,143.02,2.74235528]
[1763176177825,0.7,143.05,143.01,2.74235528]
[1763176180134,22.6512,143.08,143.03,2.74235528]
[1763176180335,0.7,143.05,143.03,2.74235528]
[1763176180541,0.7,143.05,143.02,2.74235528]
[1763176181641,0.7,143.07,143.03,3.24235528]
[1763176181840,0.7,143.07,143.03,2.74235528]
[1763176183153,0.7,143.07,143.01,0.14216157]
[1763176183154,3.44235528,143.07,143.02,2.74235528]
[1763176183528,0.7,143.06,143.01,0.14216157]
[1763176183727,0.7,143.06,143.02,2.74235528]
[1763176183932,3.44235528,143.06,143.0,2.74235528]
[1763176184247,0.7,143.05,143.01,2.74235528]
[1763176185946,3.44235528,143.05,142.99,2.88451685]
[1763176186143,2.74235528,143.04,142.99,2.74235528]
[1763176186456,3.44235528,143.04,142.99,2.74235528]
[1763176186760,0.7,143.03,142.99,2.74235528]
[1763176188443,22.6512,143.05,143.01,2.74235528]
[1763176188645,0.7,143.04,143.01,2.74235528]
[1763176188843,0.7,143.04,143.0,2.74235528]
[1763176189160,0.7,143.04,142.99,2.74235528]
[1763176189858,25.39355528,143.05,142.99,2.74235528]
[1763176189859,22.6512,143.05,142.99,2.74235528]
[1763176190034,0.7,143.04,143.0,2.74235528]
[1763176190735,0.7,143.04,143.01,2.74235528]
[1763176194384,0.7,143.06,143.02,3.24235528]
[1763176194538,0.7,143.06,143.03,2.74235528]
[1763176195962,0.7,143.06,143.02,2.74235528]
[1763176198147,0.7,143.06,143.03,2.74235528]
[1763176198468,0.7,143.06,143.03,3.24235528]
[1763176199557,0.7,143.08,143.04,3.24235528]
[1763176199769,0.7,143.08,143.05,2.74235528]
[1763176200083,23.3512,143.1,143.06,2.74235528]
[1763176200246,0.7,143.09,143.05,0.5]
[1763176200447,0.7,143.09,143.06,2.74235528]
[1763176202176,0.7,143.09,143.05,2.88451685]
[1763176202546,0.7,143.09,143.05,3.38451685]
[1763176203273,22.6512,143.1,143.06,3.24235528]
[1763176203469,0.7,143.09,143.06,2.74235528]
[1763176204880,0.7,143.1,143.06,3.24235528]
[1763176205177,0.7,143.1,143.07,2.74235528]
[1763176205377,0.7,143.1,143.06,12.53118297]
[1763176206880,26.09355528,143.1,143.04,9.78882769]
[1763176207064,26.09355528,143.1,143.05,2.74235528]
[1763176207382,0.7,143.09,143.06,2.74235528]
[1763176208081,0.7,143.09,143.05,2.74235528]
[1763176208276,0.7,143.09,143.06,12.53118297]
[1763176210472,0.7,143.09,143.06,9.78882769]
[1763176211085,0.7,143.09,143.06,12.53118297]
[1763176212087,0.71,143.11,143.07,0.5]
[1763176212257,0.71,143.11,143.06,13.03118297]
[1763176212774,0.71,143.11,143.06,12.53118297]
[1763176214983,0.71,143.11,143.06,9.78882769]
[1763176215201,0.71,143.11,143.07,2.74235528]
[1763176217089,2.46463018,143.11,143.06,11.54345787]
[1763176217499,0.68,143.1,143.06,11.54345787]
[1763176218611,0.68,143.1,143.06,12.04345787]
[1763176218779,0.68,143.1,143.07,1.75463018]
[1763176219174,0.68,143.1,143.06,9.78882769]
[1763176219690,0.68,143.1,143.06,11.54345787]
[1763176220095,0.68,143.1,143.07,11.54345787]
[1763176221276,0.68,143.1,143.06,0.14216157]
[1763176221479,0.68,143.1,143.06,1.89679175]
[1763176225007,0.68,143.1,143.06,1.75463018]
[1763176225603,0.68,143.1,143.05,9.78882769]
[1763176225800,0.68,143.1,143.06,1.75463018]
[1763176226000,0.68,143.1,143.06,2.25463018]
[1763176226202,0.68,143.1,143.06,1.75463018]
[1763176227609,0.68,143.1,143.07,1.75463018]
[1763176228798,0.68,143.13,143.09,1.75463018]
[1763176228999,0.68,143.13,143.1,2.25463018]
[1763176229599,0.68,143.13,143.1,1.75463018]
[1763176229798,0.68,143.13,143.1,2.25463018]
[1763176230103,0.68,143.13,143.11,1.75463018]
[1763176230300,0.68,143.14,143.11,1.75463018]
[1763176230604,0.2,143.15,143.12,1.75463018]
[1763176230808,0.2,143.15,143.12,2.25463018]
[1763176231413,0.2,143.15,143.13,1.75463018]
[1763176231715,0.2,143.15,143.14,1.75463018]
[1763176232010,0.2,143.15,143.14,12.18561944]
[1763176233809,0.2,143.16,143.15,9.93098926]
[1763176233997,0.2,143.16,143.15,12.18561944]
[1763176234311,0.2,143.16,143.15,19.20414016]
[1763176234511,0.2,143.16,143.15,12.18561944]
[1763176235195,0.2,143.16,143.15,13.94024962]
[1763176236295,0.2,143.16,143.15,19.20414016]
[1763176237687,0.2,143.16,143.15,11.68561944]
[1763176237886,0.2,143.16,143.15,1.75463018]
[1763176242022,0.2,143.16,143.15,1.89679175]
[1763176246823,0.2,143.16,143.15,0.14216157]
[1763176247126,0.9,143.16,143.14,1.75463018]
[1763176247621,0.7,143.15,143.14,1.75463018]
[1763176249204,0.7,143.15,143.13,11.54345787]
[1763176250126,0.7,143.15,143.14,1.75463018]
[1763176251922,0.7,143.15,143.13,11.54345787]
[1763176252412,0.7,143.15,143.12,1.75463018]
[1763176252815,0.7,143.15,143.11,1.75463018]
[1763176253023,0.7,143.15,143.13,9.78882769]
[1763176253201,0.2,143.16,143.14,11.54345787]
[1763176253522,0.2,143.16,143.15,1.75463018]
[1763176256418,0.9,143.16,143.15,1.75463018]
[1763176263410,0.9,143.16,143.14,11.54345787]
[1763176263611,0.9,143.16,143.09,0.14216157]
[1763176263612,0.7,143.15,143.09,0.14216157]
[1763176263922,2.45463018,143.15,143.09,11.54345787]
[1763176264124,0.7,143.14,143.09,11.54345787]
[1763176264611,1.75463018,143.13,143.08,1.75463018]
[1763176264817,0.7,143.12,143.08,1.75463018]
[1763176265138,0.7,143.12,143.07,1.75463018]
[1763176265139,2.45463018,143.12,143.07,1.75463018]
[1763176265328,1.75463018,143.1,143.05,1.75463018]
[1763176265528,24.40583018,143.1,143.05,1.75463018]
[1763176265837,0.7,143.09,143.05,1.75463018]
[1763176266206,2.45463018,143.09,143.04,1.75463018]
[1763176266606,0.7,143.08,143.04,1.75463018]
[1763176267539,1.75463018,143.07,143.02,1.75463018]
[1763176267912,0.7,143.06,143.01,9.78882769]
[1763176268113,0.7,143.06,143.02,1.75463018]
[1763176268417,0.7,143.06,143.01,9.78882769]
[1763176268418,2.45463018,143.06,143.01,11.54345787]
[1763176268818,0.7,143.05,143.01,11.54345787]
[1763176269218,0.7,143.05,143.02,1.75463018]
[1763176271337,0.65,143.06,143.04,1.75463018]
[1763176271713,24.40583018,143.09,143.05,1.75463018]
[1763176271714,0.65,143.08,143.05,1.75463018]
[1763176273248,0.65,143.08,143.06,1.75463018]
[1763176274422,24.40583018,143.12,143.06,1.75463018]
[1763176274737,0.66,143.09,143.06,1.75463018]
[1763176276823,0.66,143.09,143.06,2.74195915]
[1763176278154,0.66,143.09,143.05,0.5]
[1763176278455,0.66,143.09,143.06,2.74195915]
[1763176287948,0.66,143.09,143.07,2.74195915]
[1763176289653,2.74195915,143.13,143.07,2.74195915]
[1763176289855,2.74195915,143.13,143.08,2.74195915]
[1763176290039,0.66,143.12,143.08,2.74195915]
[1763176291145,0.66,143.12,143.09,2.74195915]
[1763176292731,0.66,143.12,143.11,2.74195915]
[1763176293133,0.66,143.15,143.11,0.41129387]
[1763176293346,0.66,143.15,143.12,2.74195915]
[1763176293684,0.66,143.15,143.1,2.74195915]
[1763176293859,3.40195915,143.15,143.09,2.74195915]
[1763176294359,0.66,143.14,143.09,2.74195915]
[1763176295257,0.66,143.14,143.11,2.74195915]
[1763176295853,0.66,143.14,143.1,2.74195915]
[1763176296659,0.66,143.14,143.11,2.74195915]
[1763176304070,0.66,143.14,143.1,2.74195915]
[1763176307068,0.66,143.14,143.11,2.74195915]
[1763176307267,0.66,143.14,143.1,2.74195915]
[1763176310380,0.66,143.14,143.11,2.74195915]
[1763176313454,0.87,143.16,143.12,3.24195915]
[1763176313879,0.2,143.16,143.13,0.5]
[1763176314088,0.2,143.16,143.15,2.74195915]
[1763176316557,0.87,143.16,143.12,2.74195915]
[1763176316958,0.67,143.15,143.12,2.74195915]
[1763176318077,0.67,143.15,143.11,22.79336157]
[1763176318279,0.67,143.15,143.12,2.74195915]
[1763176319462,0.2,143.16,143.14,2.74195915]